Cogmind - Beta 16.1 @@@ ROGUE MODE // 2026.04.29 @ 13:57:18 Player: the Result: Self-destructed Performance ------------- Evolutions (3) 1500 Regions Visited (4) 800 Robots Destroyed (62) 310 Value Destroyed (1575) 1575 Prototype IDs (10) 200 Alien Tech Used (0) 0 Bonus (0) 0 TOTAL SCORE: 4385 Bonus ------- None Cogmind --------- Core Integrity 661/700 Matter 118/300 Energy 340/340 System Corruption 1% Temperature Danger (406) Movement Rolling (90) Location -7/Factory Parts ------- > --- POWER (2) -------- Improved Deuterium Engine Light Angular Momentum Engine > --- PROPULSION (4) --- Armored Huge Wheel Armored Huge Wheel > --- UTILITY (4) ------ Improved Sensor Array Improved Signal Interpreter Hacking Suite System Shield > --- WEAPON (3) ------- Plasma Cannon Plasma Cannon Plasma Cannon > --- INVENTORY (5) ---- Coolant Injector Medium Reactive Plating System Shield Rocket Launcher Chainsword Peak State ------------ > --- POWER ------------ Improved Deuterium Engine Light Angular Momentum Engine > --- PROPULSION ------- Armored Huge Wheel Armored Huge Wheel > --- UTILITY ---------- Improved Sensor Array Improved Signal Interpreter Hacking Suite System Shield > --- WEAPON ----------- Plasma Cannon Plasma Cannon Plasma Cannon > --- INVENTORY -------- Coolant Injector Advanced Targeting Computer Medium Reactive Plating Rocket Launcher Chainsword [Rating: 50] Favorites ----------- Power Improved Deuterium Engine Engine Improved Deuterium Engine Power Core Light Nuclear Core Propulsion Light Treads Treads Light Treads Leg Carbon-fiber Leg Wheel Subdweller Monowheel Utility Improved Signal Interpreter Device Improved Sensor Array Processor Improved Signal Interpreter Hackware Hacking Suite Protection Light Armor Plating Weapon Minigun Energy Gun Heavy Laser Energy Cannon Beam Cannon Ballistic Gun Minigun Launcher Rocket Launcher Impact Weapon Great Maul Slashing Weapon Katana Build | -11 -10 -10 -8 -7 ------- Run | Yrd Mat Sub Mat Fac Slots Evolved 6 | . . . 4 2 Power 1 | . . . 1 . Propulsion 2 | . . . 1 1 Utility 2 | . . . 1 1 Weapon 1 | . . . 1 . Parts Attached 68 | 8 6 15 29 10 Power 8 | 1 1 1 5 . Engine 7 | 1 . 1 5 . Core 1 | . 1 . . . Reactor . | . . . . . Propulsion 14 | 2 1 4 6 1 Treads 5 | 2 1 . 2 . Leg 1 | . . . 1 . Wheel 8 | . . 4 3 1 Hover . | . . . . . Flight . | . . . . . Utility 15 | 3 2 3 5 2 Device 6 | 3 . 1 2 . Storage . | . . . . . Processor 2 | . . . 2 . Hackware 2 | . . . 1 1 Protection 5 | . 2 2 . 1 Artifact . | . . . . . Weapon 31 | 2 2 7 13 7 Energy Gun 9 | 1 . 3 4 1 Energy Cannon 9 | . 2 3 1 3 Ballistic Gun 5 | 1 . . 3 1 Ballistic Cannon . | . . . . . Launcher 1 | . . . . 1 Special Weapon . | . . . . . Impact Weapon 5 | . . 1 4 . Slashing Weapon 2 | . . . 1 1 Piercing Weapon . | . . . . . Special Melee Weapon . | . . . . . Unidentified Prototypes 2 | . . . . 2 Parts Lost 9 | . . 6 2 1 Power 2 | . . 1 . 1 Propulsion 4 | . . 2 2 . Utility 2 | . . 2 . . Weapon 1 | . . 1 . . Highest Loss Streak 5 | . . 5 1 1 To Critical Strikes . | . . . . . Average Backups 4 | 1 4 4 4 4 Power . | . 1 . . . Propulsion . | . . . . . Utility 1 | . 1 . 1 2 Weapon 2 | . 2 3 2 2 Tool/Special . | . . . . . Unused Backups 12 | . 1 1 5 5 Power 1 | . . 1 . . Propulsion . | . . . . . Utility 6 | . . . 1 5 Weapon 4 | . 1 . 3 . Tool/Special 1 | . . . 1 . Average Slot Usage (%) 88 | . 96 87 85 83 Engine 11 | . 5 6 16 14 Core 3 | . 8 6 . . Treads 9 | . 28 14 2 . Leg 1 | . . . 3 . Wheel 9 | . . 11 10 15 Device 11 | . 14 6 13 6 Processor 4 | . . . 8 7 Hackware 2 | . . . . 14 Protection 5 | . 11 12 1 . Energy Gun 6 | . 5 11 7 . Energy Cannon 7 | . 18 14 1 3 Ballistic Gun 6 | . 5 . 5 15 Impact Weapon 5 | . . 1 11 . Slashing Weapon 1 | . . . 1 2 Peak Build Rating 50 | 7 9 15 39 50 Average Rating 24 | 4 8 11 31 47 On Entrance 13 | . 6 9 15 36 Avg Prop Armor Cover (%) 7 | . . . 7 . Naked Turns . | . . . . . Heaviest Build 48 | 8 15 39 42 48 Greatest Support 56 | 40 40 40 56 56 Greatest Overweight (x) 10 | . . 10 10 . Average Overweight (x) . | . . . . . Largest Inventory Capacity 5 | 5 5 5 5 5 Average Capacity 5 | 5 5 5 5 5 Most Carried 5 | 4 5 5 5 5 Average Carried 4 | 1 4 4 4 4 Final Capacity 5 | 5 5 5 5 5 Final Carried 5 | 3 5 5 5 5 Class Distribution -------------------- 45% | Mutant 16% | Subdweller-Mutant 13% | Scavenger-Skirmisher 7% | Hacker-Skirmisher 6% | Hacker-Mutant 5% | Scavenger-Mutant Dominant Class ---------------- Mutant | -10/Materials Subdweller-Mutant | -10/Subcaves Mutant | -8/Materials Hacker-Skirmisher | -7/Factory Resources | -11 -10 -10 -8 -7 ----------- Run | Yrd Mat Sub Mat Fac Matter Collected 1120 | 294 72 240 287 227 Remotely . | . . . . . Salvage Created 2214 | 178 344 330 1045 317 Parts 110 | 15 17 21 32 25 Haulers Intercepted 4 | . 1 . 3 . Recyclers Shooed 2 | . 2 . . . Parts Field Recycled . | . . . . . Retrieved Matter . | . . . . . Parts Self-Destructed . | . . . . . Prevented . | . . . . . Parts Restored . | . . . . . Kills | -11 -10 -10 -8 -7 ------- Run | Yrd Mat Sub Mat Fac Combat Hostiles Destroyed 31 | . 10 7 7 7 Melee 4 | . . . 4 . Guns 9 | . 2 3 2 2 Cannons 12 | . 8 3 . 1 AOE 4 | . . . . 4 Classes Destroyed 12 | 2 5 1 2 2 Worker 4 | . 1 . 2 1 Builder 4 | . . . 2 2 Tunneler 6 | 5 . . 1 . Hauler 4 | . 1 . 3 . Recycler 7 | 1 . . 5 1 Operator 1 | . . . . 1 Watcher 5 | . 2 . 2 1 Swarmer 10 | . 6 . . 4 Grunt 7 | . 4 . 3 . Sentry 5 | . . . 4 1 Programmer 2 | . . . . 2 Subdweller 7 | . . 7 . . Best Kill Streak 6 | 3 4 2 4 6 Combat Bots Only 4 | . 3 2 3 4 Max Kills in Single Turn 3 | 1 2 1 1 3 Gunslinging . | . . . . . Exploded 2 | . . . . 2 Melee 1 | . . . 1 . Uniques/NPCs Destroyed . | . . . . . Combat | -11 -10 -10 -8 -7 -------- Run | Yrd Mat Sub Mat Fac Hostile Shots Fired 127 | . 29 37 23 38 Missed 42 | . 9 11 3 19 Hits 85 | . 20 26 20 19 Projectile 85 | . 20 26 20 19 Critical Strikes 2 | . . . 2 . Damage Taken 1428 | . 195 685 308 240 Core 230 | . 73 103 15 39 Absorbed by Shields . | . . . . . Redirected to Shielding 5 | . 5 . . . Ignored by Resistances 14 | . . . . 14 Core Remaining (%) 75 | 100 . 29 97 . Volleys Fired 115 | 24 32 24 17 18 Largest 3 | 2 2 2 3 3 Hottest 240 | 60 120 160 207 240 Shots Fired 248 | 44 64 46 45 49 Gun 153 | 44 24 18 39 28 Cannon 92 | . 40 28 6 18 Launcher 3 | . . . . 3 Special . | . . . . . Kinetic 70 | 24 12 . 6 28 Thermal 169 | 20 52 46 33 18 Explosive 3 | . . . . 3 Electromagnetic 6 | . . . 6 . Robot Hit Streak 14 | 5 6 11 6 14 Robot Miss Streak 6 | 3 3 1 5 6 Penetration Max . | . . . . . Secondary Targets . | . . . . . Shots Hit Robots 173 | 24 40 31 51 27 Core Hits 75 | 8 17 10 17 23 Critical Kills 2 | . . 1 1 . Critical Parts Destroyed 4 | . . . 4 . Critical Strikes 7 | . . 1 6 . Burn 1 | . . . 1 . Meltdown 1 | . . 1 . . Smash 5 | . . . 5 . Melee Attacks 54 | . . 7 44 3 Impact 45 | . . 7 38 . Slashing 9 | . . . 6 3 Piercing . | . . . . . Sneak Attacks 10 | . . . 10 . Combat Hostiles . | . . . . . Follow-up Attacks 10 | . . . 10 . Damage Inflicted 4916 | 241 654 713 2052 1256 Guns 1391 | 241 188 311 319 332 Cannons 1176 | . 462 358 88 268 Explosions 656 | . . . . 656 Melee 1689 | . . 44 1645 . Ramming 4 | . 4 . . . Kinetic 509 | 85 73 . 19 332 Thermal 2023 | 156 577 669 353 268 Explosive 631 | . . . . 631 Electromagnetic 60 | . . . 35 25 Impact 1555 | . . 44 1511 . Slashing 134 | . . . 134 . Piercing . | . . . . . Highest Corruption 1 | . . . . 1 Average Corruption 1 | . . . . 1 Corruption Purged . | . . . . . Corruption Blocked . | . . . . . Effects 3 | . . . . 3 Message Errors 1 | . . . . 1 Matter Fused 1 | . . . . 1 Misfires 1 | . . . . 1 Overload Shots . | . . . . . Overflow Damage 578 | . 26 . 526 26 Projectiles 30 | . 26 . . 4 Explosions 22 | . . . . 22 Melee 526 | . . . 526 . Knockbacks . | . . . . . Impact . | . . . . . Kinetic . | . . . . . Secondary . | . . . . . Self-Inflicted Damage . | . . . . . Shots . | . . . . . Rammed 1 | . 1 . . . Targets Rammed 2 | . 2 . . . Kicked . | . . . . . Crushed 1 | . 1 . . . Highest Temperature 433 | 40 324 87 207 433 Average Temperature 77 | 18 94 31 60 121 Received Heat Transfer 414 | . 63 162 153 36 Effects 3 | . 1 . . 2 Shutdowns 2 | . . . . 2 Energy Bleed 1 | . 1 . . . Siege Activations . | . . . . . Martial Activations . | . . . . . Shielding Activations . | . . . . . Robots Disrupted . | . . . . . Combat Hostiles . | . . . . . Robots Corrupted 4 | . . . 4 . Combat Hostiles 1 | . . . 1 . Parts Fried 9 | . . . 9 . Impact Corruptions 16 | . . . 16 . Robots Melted 1 | . . 1 . . Combat Hostiles 1 | . . 1 . . Parts Melted 7 | . 1 2 1 3 Heat Transferred 3732 | 350 1212 930 740 500 Parts Sabotaged . | . . . . . Parts Stolen . | . . . . . Parts Stripped . | . . . . . Power Chain Reactions . | . . . . . Alert | -11 -10 -10 -8 -7 ------- Run | Yrd Mat Sub Mat Fac Maximum Alert Level 1 | . . . . 1 Low Security (%) 86 | 100 100 . 100 32 Level 1 13 | . . . . 67 Level 2 . | . . . . . Level 3 . | . . . . . Level 4 . | . . . . . Level 5 . | . . . . . High Security . | . . . . . Max Security . | . . . . . Peak Influence 369 | 10 142 . 67 369 Initial 2 | . . . . 2 Average 57 | 1 53 . 13 189 Influence Increases 1318 | 30 338 . 342 608 Destroy 0b10 Robot/C 520 | . 200 . 140 180 Destroy 0b10 Robot/NC 155 | 30 20 . 75 30 Destroy Leader 148 | . 46 . 60 42 Successful Hack 88 | . 39 . 30 19 Disable Machine 330 | . 15 . 30 285 Destroy Structure 62 | . 3 . 7 52 Lose Combat Pursuer 15 | . 15 . . . Influence Decreases 949 | 30 255 83 337 244 Entered New Map 44 | . . 41 . 3 Time Decay 825 | 30 245 42 317 191 Lost Part 30 | . . . 20 10 Lost Ally 50 | . 10 . . 40 Squads Dispatched 4 | . . . . 4 Investigation 3 | . . . . 3 Extermination 1 | . . . . 1 Reinforcement . | . . . . . Assault . | . . . . . Garrison . | . . . . . Intercept . | . . . . . Searches Triggered . | . . . . . Construction Impeded . | . . . . . Haulers Reinforced . | . . . . . Active Scanning Responses . | . . . . . Cargo Convoy Interrupts . | . . . . . Stealth | -11 -10 -10 -8 -7 --------- Run | Yrd Mat Sub Mat Fac Distress Signals 4 | . 3 . . 1 Communications Jammed . | . . . . . Distress Signals . | . . . . . Times Spotted 43 | . 19 7 10 7 Peak Tracking Total 5 | . 3 2 3 5 Tactical Retreats 1 | . 1 . . . Traps | -11 -10 -10 -8 -7 ------- Run | Yrd Mat Sub Mat Fac Traps Triggered 3 | . . 1 . 2 Indirectly . | . . . . . Trap Hack Attempts . | . . . . . Triggered . | . . . . . Disarmed . | . . . . . Reprogrammed . | . . . . . Reused . | . . . . . Traps Extracted . | . . . . . Installed . | . . . . . Triggered . | . . . . . Machines | -11 -10 -10 -8 -7 ---------- Run | Yrd Mat Sub Mat Fac Machines Disabled 22 | . 1 . 2 19 Max in Single Turn 5 | . 1 . 1 5 Machines Repaired . | . . . . . Machines Dismantled . | . . . . . Machines Sabotaged . | . . . . . Overloaded Fab Kills . | . . . . . Hacking | -11 -10 -10 -8 -7 --------- Run | Yrd Mat Sub Mat Fac Machines Accessed 21 | . 8 . 7 6 Terminals 16 | . 7 . 6 3 Fabricators 1 | . . . . 1 Repair Stations . | . . . . . Recycling Units 3 | . 1 . 1 1 Scanalyzers 1 | . . . . 1 Garrison Access . | . . . . . Total Hacks 56 | . 26 . 11 19 Successful 31 | . 18 . 7 6 Failed 24 | . 7 . 4 13 Catastrophic 4 | . 1 . . 3 Database Lockouts 1 | . 1 . . . Manual 27 | . 16 . 2 9 Terminals 43 | . 24 . 9 10 Fabricators 1 | . . . . 1 Repair Stations . | . . . . . Recycling Units 6 | . 2 . 2 2 Scanalyzers 6 | . . . . 6 Garrison Access . | . . . . . Terminal Hacks 15 | . 8 . 5 2 Robot Analysis 2 | . 2 . . . Prototype ID Bank 5 | . 4 . 1 . Level Access Points 1 | . . . . 1 Branch Access Points 2 | . . . 1 1 Locate Traps 1 | . 1 . . . Hauler Manifests 2 | . 1 . 1 . Registered Components 1 | . . . 1 . Zone Layout 1 | . . . 1 . Fabricator Hacks 1 | . . . . 1 Build 1 | . . . . 1 Repair Station Hacks . | . . . . . Recycling Unit Hacks 3 | . 1 . 1 1 Retrieve Components 3 | . 1 . 1 1 Scanalyzer 1 | . . . . 1 Retrieve Study 1 | . . . . 1 Garrison Access Hacks . | . . . . . Unauthorized Hacks 11 | . 9 . 1 1 Terminals 11 | . 9 . 1 1 Assimilate 2 | . 1 . . 1 Botnet 3 | . 2 . 1 . Operators 1 | . 1 . . . Skim 5 | . 5 . . . Fabricators . | . . . . . Repair Stations . | . . . . . Recycling Units . | . . . . . Scanalyzers . | . . . . . Garrison Access . | . . . . . Data Cores Recovered . | . . . . . Used . | . . . . . Hacking Detections 14 | . 7 . 3 4 Full Trace Events 2 | . . . . 2 Feedback Events 1 | . . . . 1 Corruption 1 | . . . . 1 Feedback Blocked . | . . . . . Robot Schematics Acquired . | . . . . . Robots Built 2 | . . . . 2 Authchips . | . . . . . Time 116 | . . . . 116 Total Robot Build Rating 6 | . . . . 6 Part Schematics Acquired . | . . . . . Parts Built . | . . . . . Authchips . | . . . . . Time . | . . . . . Total Part Build Rating . | . . . . . Part Studies Acquired 1 | . . . . 1 Parts Repaired . | . . . . . Time . | . . . . . Parts Recycled . | . . . . . Recycled Matter . | . . . . . Retrieved Matter . | . . . . . Retrieved Components 5 | . 2 . 3 . Parts Scanalyzed . | . . . . . Part Schematics Acquired . | . . . . . Parts Damaged . | . . . . . Bothacking | -11 -10 -10 -8 -7 ------------ Run | Yrd Mat Sub Mat Fac Used RIF Installer . | . . . . . Robots Hacked . | . . . . . Non-combat . | . . . . . Combat . | . . . . . Robot Hacks Applied . | . . . . . Relay Couplers Released . | . . . . . Fabnet Peak Effective % . | . . . . . Robots Rewired . | . . . . . Allies Hacked . | . . . . . Hacks Repelled . | . . . . . Allies | -11 -10 -10 -8 -7 -------- Run | Yrd Mat Sub Mat Fac Total Allies 4 | . 1 . . 3 Largest Group 2 | . 1 . . 2 Highest-Rated Group 48 | . 10 . . 48 Highest-Rated Ally 26 | . 10 . . 26 Total Orders . | . . . . . Ally Attacks 8 | . . . . 8 Total Damage 193 | . . . . 193 Kills 2 | . . . . 2 Allies Corrupted . | . . . . . Allies Melted . | . . . . . Intel | -11 -10 -10 -8 -7 ------- Run | Yrd Mat Sub Mat Fac Active Infowar (turns) 3436 | 76 830 318 1627 585 Sensors 1848 | . . . 1263 585 Seismic 1589 | 76 830 318 365 . Robot Analysis Total 2 | . 2 . . . Derelict Logs Recovered . | . . . . . Drone Launches . | . . . . . Drone Recoveries . | . . . . . Exploration | -11 -10 -10 -8 -7 ------------- Run | Yrd Mat Sub Mat Fac Turns Passed 3954 | 180 830 683 1627 634 Spaces Moved 2291 | 66 342 387 926 570 Core 10 | 4 . 4 2 . Treads 708 | 62 342 164 140 . Legs 90 | . . . 90 . Wheels 1483 | . . 219 694 570 Hover . | . . . . . Flight . | . . . . . Fastest Speed 50 | 50 160 110 100 90 Average Speed 130 | 153 160 134 140 91 Slowest Speed 550 | 160 160 550 550 100 Overloaded Moves . | . . . . . Propulsion Burnouts . | . . . . . Robots Hopped . | . . . . . Potential Cave-ins . | . . . . . Cave-ins Triggered . | . . . . . Exploration Rate (%) 33 | 3 66 24 54 20 Regions Visited 4 Branch Regions 1 Pre-discovered Areas 1 | . 1 . . . Known Exits Taken 2 | . . 1 1 . Unknown Exits Taken 2 | 1 1 . . . Scrap Searched 4 | . . 4 . . Spaces Dug 10 | . . . 7 3 Terrain Destroyed 69 | . . 2 7 60 Melee 10 | . . . 7 3 Projectile 2 | . . 2 . . AOE 57 | . . . . 57 Terrain Rammed . | . . . . . Walls Destroyed . | . . . . . Machines Disabled . | . . . . . Actions | -11 -10 -10 -8 -7 --------- Run | Yrd Mat Sub Mat Fac Total 2953 | 104 561 490 1157 641 Wait 335 | . 174 27 112 22 Move 2287 | 65 341 386 925 570 Hop . | . . . . . Pick Up 29 | 3 3 5 11 7 Fast Attach 29 | 8 2 7 11 1 Attach 10 | . . 2 6 2 Detach 7 | 2 . 1 4 . Swap 51 | . 4 15 18 14 Drop 44 | 2 3 12 23 4 Fire 115 | 24 32 24 17 18 Melee 40 | . . 7 30 3 Ram . | . . . . . Kick . | . . . . . Crush 2 | . 2 . . . Escape Stasis . | . . . . . Rewire . | . . . . . Trap . | . . . . . Miscellaneous 4 | . . 4 . . Route ------- -11/Scrapyard -10/Materials (discovered 4 exits: [*Mat x2] / [*Min] / [*Sub]) -10/Subcaves -8/Materials -7/Factory (discovered 6 exits: *Fac x4 / *Low x2) History --------- Turn | Location | Event 3 | -11/Scrapyard | Discovered new exit (range 16) 181 | -11/Scrapyard | Entered Materials 310 | -10/Materials | Build established: Mutant 362 | -10/Materials | Discovered new exit (range 7) 423 | -10/Materials | Discovered new exit (range 16) 562 | -10/Materials | Discovered new exit (range 16) 629 | -10/Materials | Central database locked down 681 | -10/Materials | Derelicts attacked the area 706 | -10/Materials | Learned location of Recycling (-9) 771 | -10/Materials | Learned 4 Subcaves zone layouts 998 | -10/Materials | Discovered new exit (range 8) 1011 | -10/Materials | Entered Subcaves 1012 | -10/Subcaves | Approached by a straggling Scientist 1012 | -10/Subcaves | Identified exit to Materials 1160 | -10/Subcaves | Disturbed a concealed Subdweller 1315 | -10/Subcaves | Shifting Twisted Machinery released Flamer 1359 | -10/Subcaves | Core integrity fell below 50% 1381 | -10/Subcaves | Lost 5 parts (1p2n1u1w) 1522 | -10/Subcaves | Shifting Twisted Machinery released Sub. Beam Cannon 1665 | -10/Subcaves | Build established: Subdweller-Mutant 1694 | -10/Subcaves | Entered Materials 1694 | -8/Materials | Evolved 4 slots: Power x1, Propulsion x1, Utility x1, Weapon x1 2350 | -8/Materials | Build established: Mutant 2761 | -8/Materials | Build established: Scavenger-Skirmisher 3060 | -8/Materials | Discovered new exit (range 15) 3320 | -8/Materials | Identified exit to Factory 3321 | -8/Materials | Entered Factory 3321 | -7/Factory | Evolved 2 slots: Propulsion x1, Utility x1 3604 | -7/Factory | Discovered new exit (range 10) 3611 | -7/Factory | Identified exit to Lower Caves 3661 | -7/Factory | Fabricated X-57 Shotgunner? 3801 | -7/Factory | Identified exit to Factory 3883 | -7/Factory | Discovered exit to Lower Caves (range 15) 3955 | -7/Factory | Self-destructed Last Messages --------------- 03919_ K-01 Serf cleans the Neutrino Reactor. 03929_ K-01 Serf cleans the Fusion Modulator. 03939_ Administrator 4a reveals location of Proton Bomb Trap. 03948_ Connecting with Terminal... >>Access(Branch) Found 2 branch access points: (17,50) Lower Caves (57,5) Lower Caves Map updated. 03948_ Construction Platform disabled. 03951_ P-60 Hacker destroyed. 03951_ Terrain Scan Processor melted. 03951_ Structural Scanner melted. 03951_ U-05 Engineer destroyed. 03952_ K-01 Serf collects debris. 03953_ Power failure, Imp. Deuterium Engine shutdown. 03955_ K-01 Serf collects debris. Map ----- +----------------------------------------------------+ | ?????????????????????????????????????????????????? | | ?????????????????????????????????????????????????? | | ?????????????????????????????????????????????????? | | ?????????????????????????????????????????????????? | | #????????????????????????????????????????????????? | | ???????????????????????????????????????????????? | | ""?? #???????????????????????????????????????????? | | "" #???????????????????????????????????????????? | | "" #???????????????????????????????????????????? | | #???????????????????????????????????????????? | | "" #???????????????????????????????????????????? | | "" #???????????????????????????????????????????? | | "" #???????????????????????????????????????????? | | #???????????????????????????????????????????? | | "Y" #???????????????????????????????????????????? | | """ #???????????????????????????????????????????? | | #??# #??????????????????????????????????????? | | ######### #####?####+########????????????????????? | | ^ ???k????????????????? | | ^^ ?????????????????????? | | ^ """ """ ??????????????????????? | | ^ """ """ ??????????????????????? | | ^ """ """ ???????????????????????? | | ############ ####+####+####???????????? | | #????# """ """ / # T [!k ????????? | | "" #????# """ """ #@ ==%k|%= ????????? | | "" ###### """ """ + "" " " """????????????? | | "" + # """"""" "??????????????? | | "" ###### ko # """"""?????????????????? | | #????# !# """""??????????????????? | | "" #????######## # ??????????????????? | | "" #???????????# #######??????????????????? | | "" #???????????# #????????????????????????? | | "" #???????????/ #????????????????????????? | | #?????????? # #????????????????????????? | | #????????? # #????????????????????????? | | #######???????? ?# #????????????????????????? | | ?????????????? ??# #????????????????????????? | | ????????????? ???#k #????????????????????????? | | ???????????? ???# #????????????????????????? | | ?????????????#????# #????????????????????????? | | ??????????????????# #????????????????????????? | | ??????????????????#^^ #????????????????????????? | | ??????????????????#^^ #????????????????????????? | | ??????????????????? #????????????????????????? | | ??????????????????? ??????????????????????????? | | ?????????????????????????????????????????????????? | | ?????????????????????????????????????????????????? | | ?????????????????????????????????????????????????? | | ?????????????????????????????????????????????????? | +----------------------------------------------------+ Best States ------------- Heat Dissipation 50 Energy Generation 29 Energy Capacity 480 Matter Stores 300 Matter Capacity 300 Sight Range 16 Robot Scan Range 15 Terrain Scan Density 10 Armor Coverage 800 Resistance: KI 30 Core Shielding 20 Evasion (%) 42 Targeting Accuracy 8 Recoil Reduction 2 Offensive Hacking 10 Defensive Hacking 10 Item Schematics ----------------- None Robot Schematics ------------------ None Fabricated ------------ X-57 Shotgunner | x2 | -7/Factory | Preloaded Repaired ---------- Nothing Studied --------- Arm. Huge Wheel | -7/Factory | Hacked Alien Tech Used ----------------- None Achievements -------------- None Challenges ------------ None Game ------ Seed CompactMetamassTorch Manual? 0 Play Time 00:30:36 Cumulative 720.5 hours Start 2026.04.29 @ 13:29:14 End 2026.04.29 @ 13:57:18 Sessions 1 Manual Loads 0 Difficulty Rogue Special Mode None Game No. 401 Rogue 401 Adventurer 0 Explorer 0 Win Type - Total 32 Types 15/2/6/2/1/1/1/2/1/1 Lore% 94 Gallery% 89 Achievement% 80 Wizard Run 0 Options --------- Layout 1 ASCII 0 Keyboard 0 Movement Numpad Keybinds 0 Fullscreen 2 Font 24/Smallcaps Map View 50x40 Zoom Use 0% Tactical HUD 1 Map Filters NONE Filters NONE Steam 1 RUN: 282d8efd-8288-4630-ae32-65096f8fa64b